Cogmind - Beta 13 @@@ ROGUE MODE // 2024.04.07 @ 23:08:03 Player: dohmmass Result: Destroyed by JU-YTI(R) with Subdweller Machine Gun Performance ------------- Evolutions (0) 0 Regions Visited (3) 600 Robots Destroyed (5) 25 Value Destroyed (206) 206 Prototype IDs (0) 0 Alien Tech Used (0) 0 Bonus (0) 0 TOTAL SCORE: 831 Bonus ------- None Cogmind --------- Core Integrity 0/250 Matter 276/300 Energy 236/250 System Corruption 0% Temperature Cool (0) Movement Rolling (110) Location -10/Subcaves Parts ------- > --- POWER (1) -------- Ion Engine > --- PROPULSION (2) --- Subdweller Monowheel > --- UTILITY (2) ------ Subdweller Optics Makeshift Kinetic Plating > --- WEAPON (2) ------- Dirty Datajack > --- INVENTORY (5) ---- Subdweller Optics Barrage Gun Mining Laser Peak State ------------ > --- POWER ------------ Ion Engine > --- PROPULSION ------- Wheel Subdweller Monowheel > --- UTILITY ---------- Subdweller Optics Makeshift Kinetic Plating > --- WEAPON ----------- Barrage Gun Heavy Battle Rifle > --- INVENTORY -------- Heat Sink Barrage Gun Dirty Datajack Mining Laser [Rating: 18] Favorites ----------- Power Ion Engine Engine Ion Engine Propulsion Wheel Wheel Wheel Utility Heat Sink Device Heat Sink Protection Light Armor Plating Weapon EM Pulse Gun Energy Gun EM Pulse Gun Ballistic Gun Barrage Gun Special Weapon Mining Laser Special Melee Weapon Dirty Datajack Build | -11 -10 -10 -10 ------- Run | Yrd Mat Min Sub Slots Evolved . | . . . . Power . | . . . . Propulsion . | . . . . Utility . | . . . . Weapon . | . . . . Parts Attached 25 | 5 1 . 19 Power 3 | 1 . . 2 Engine 3 | 1 . . 2 Core . | . . . . Reactor . | . . . . Propulsion 3 | 2 . . 1 Treads . | . . . . Leg . | . . . . Wheel 3 | 2 . . 1 Hover . | . . . . Flight . | . . . . Utility 6 | . . . 6 Device 3 | . . . 3 Storage . | . . . . Processor . | . . . . Hackware . | . . . . Protection 3 | . . . 3 Artifact . | . . . . Weapon 13 | 2 1 . 10 Energy Gun 6 | 2 . . 4 Energy Cannon . | . . . . Ballistic Gun 2 | . . . 2 Ballistic Cannon . | . . . . Launcher . | . . . . Special Weapon 4 | . 1 . 3 Impact Weapon . | . . . . Slashing Weapon . | . . . . Piercing Weapon . | . . . . Special Melee Weapon 1 | . . . 1 Unidentified Prototypes . | . . . . Parts Lost 8 | . . . 8 Power 1 | . . . 1 Propulsion 2 | . . . 2 Utility 1 | . . . 1 Weapon 4 | . . . 4 Highest Loss Streak 5 | . . . 5 To Critical Strikes 1 | . . . 1 Average Slot Usage (%) 78 | . 71 71 86 Engine 13 | . 14 14 12 Wheel 25 | . 28 28 23 Device 6 | . . . 12 Protection 4 | . . . 9 Energy Gun 15 | . 26 14 12 Ballistic Gun 5 | . . . 10 Special Weapon 6 | . 1 14 4 Naked Turns . | . . . . Heaviest Build 21 | 8 8 8 21 Greatest Support 30 | 20 20 20 30 Greatest Overweight (x) 1 | . . . 1 Average Overweight (x) . | . . . . Largest Inventory Capacity 5 | 5 5 5 5 Average Capacity 5 | 5 5 5 5 Most Carried 5 | 5 1 2 5 Average Carried 2 | 1 . 1 3 Final Capacity 5 | 5 5 5 5 Final Carried 3 | . 1 2 3 Class Distribution -------------------- 89% | Mutant 10% | Derelict-Mutant Dominant Class ---------------- Mutant | -10/Materials Mutant | -10/Mines Mutant | -10/Subcaves Resources | -11 -10 -10 -10 ----------- Run | Yrd Mat Min Sub Matter Collected 453 | 165 35 50 203 Remotely . | . . . . Salvage Created 247 | . 95 . 152 Parts 17 | . 5 . 12 Haulers Intercepted . | . . . . Recyclers Shooed . | . . . . Parts Field Recycled . | . . . . Retrieved Matter . | . . . . Parts Self-Destructed 2 | . . . 2 Prevented 2 | . . . 2 Kills | -11 -10 -10 -10 ------- Run | Yrd Mat Min Sub Combat Hostiles Destroyed 5 | . 2 . 3 Guns 5 | . 2 . 3 Classes Destroyed 3 | . 1 . 2 Grunt 2 | . 2 . . Sentry 1 | . . . 1 Subdweller 2 | . . . 2 Best Kill Streak 2 | . 2 . 1 Combat Bots Only 2 | . 2 . 1 Max Kills in Single Turn 1 | . 1 . 1 Gunslinging . | . . . . Exploded . | . . . . Melee . | . . . . Uniques/NPCs Destroyed . | . . . . Combat | -11 -10 -10 -10 -------- Run | Yrd Mat Min Sub Hostile Shots Fired 68 | . 10 . 58 Missed 18 | . 1 . 17 Damage Taken 1064 | . 124 . 940 Core 272 | . 16 . 256 Absorbed by Shields . | . . . . Ignored by Resistances 43 | . . . 43 Core Remaining (%) 100 | 100 . . . Volleys Fired 72 | . 9 30 33 Largest 2 | . 2 1 2 Hottest 140 | . 80 100 140 Shots Fired 107 | . 18 30 59 Gun 70 | . 18 . 52 Cannon . | . . . . Launcher . | . . . . Special 37 | . . 30 7 Kinetic 19 | . . . 19 Thermal 46 | . 9 30 7 Explosive . | . . . . Electromagnetic 42 | . 9 . 33 Robot Hit Streak 16 | . 6 . 16 Robot Miss Streak 3 | . 2 . 3 Penetration Max . | . . . . Secondary Targets . | . . . . Shots Hit Robots 50 | . 11 . 39 Core Hits 12 | . 5 . 7 Critical Kills . | . . . . Critical Parts Destroyed . | . . . . Critical Strikes 2 | . 1 . 1 Destroy 1 | . . . 1 Corrupt 1 | . 1 . . Melee Attacks 2 | . . . 2 Impact . | . . . . Slashing . | . . . . Piercing 2 | . . . 2 Sneak Attacks . | . . . . Combat Hostiles . | . . . . Follow-up Attacks . | . . . . Damage Inflicted 522 | . 139 . 383 Guns 519 | . 139 . 380 Cannons . | . . . . Explosions . | . . . . Melee 3 | . . . 3 Ramming . | . . . . Kinetic 259 | . . . 259 Thermal 35 | . 35 . . Explosive . | . . . . Electromagnetic 225 | . 104 . 121 Impact . | . . . . Slashing . | . . . . Piercing 3 | . . . 3 Highest Corruption . | . . . . Average Corruption . | . . . . Corruption Purged . | . . . . Corruption Blocked . | . . . . Overload Shots . | . . . . Overflow Damage . | . . . . Projectiles . | . . . . Explosions . | . . . . Melee . | . . . . Knockbacks . | . . . . Impact . | . . . . Kinetic . | . . . . Secondary . | . . . . Self-Inflicted Damage . | . . . . Shots . | . . . . Rammed . | . . . . Targets Rammed . | . . . . Kicked . | . . . . Crushed . | . . . . Highest Temperature 280 | . 181 280 . Average Temperature 124 | . 85 134 . Received Heat Transfer 126 | . 72 . 54 Effects 1 | . . 1 . Interference 1 | . . 1 . Siege Activations . | . . . . Robots Corrupted . | . . . . Combat Hostiles . | . . . . Parts Fried . | . . . . Impact Corruptions . | . . . . Robots Melted . | . . . . Combat Hostiles . | . . . . Parts Melted . | . . . . Heat Transferred 75 | . 75 . . Parts Sabotaged . | . . . . Parts Stolen . | . . . . Parts Stripped . | . . . . Power Chain Reactions . | . . . . Alert | -11 -10 -10 -10 ------- Run | Yrd Mat Min Sub Peak Influence 50 | . 50 20 . Initial 19 | . . 19 . Average 17 | . 19 19 . Maximum Alert Level . | . . . . Low Security (%) 100 | 100 100 100 . Level 1 . | . . . . Level 2 . | . . . . Level 3 . | . . . . Level 4 . | . . . . Level 5 . | . . . . High Security . | . . . . Max Security . | . . . . Squads Dispatched 2 | . 2 . . Investigation . | . . . . Extermination . | . . . . Reinforcement 2 | . 2 . . Assault . | . . . . Garrison . | . . . . Intercept . | . . . . Searches Triggered . | . . . . Construction Impeded . | . . . . Haulers Reinforced . | . . . . Active Scanning Responses . | . . . . Cargo Convoy Interrupts . | . . . . Stealth | -11 -10 -10 -10 --------- Run | Yrd Mat Min Sub Distress Signals . | . . . . Communications Jammed . | . . . . Distress Signals . | . . . . Times Spotted 12 | . 3 . 9 Peak Tracking Total 5 | . 2 . 5 Tactical Retreats . | . . . . Traps | -11 -10 -10 -10 ------- Run | Yrd Mat Min Sub Traps Triggered 1 | . . . 1 Indirectly . | . . . . Trap Hack Attempts . | . . . . Triggered . | . . . . Disarmed . | . . . . Reprogrammed . | . . . . Reused . | . . . . Traps Extracted . | . . . . Installed . | . . . . Triggered . | . . . . Machines | -11 -10 -10 -10 ---------- Run | Yrd Mat Min Sub Machines Disabled . | . . . . Max in Single Turn . | . . . . Machines Repaired . | . . . . Machines Dismantled . | . . . . Machines Sabotaged . | . . . . Overloaded Fab Kills . | . . . . Hacking | -11 -10 -10 -10 --------- Run | Yrd Mat Min Sub Machines Accessed . | . . . . Terminals . | . . . . Fabricators . | . . . . Repair Stations . | . . . . Recycling Units . | . . . . Scanalyzers . | . . . . Garrison Access . | . . . . Total Hacks . | . . . . Successful . | . . . . Failed . | . . . . Catastrophic . | . . . . Database Lockouts . | . . . . Manual . | . . . . Terminals . | . . . . Fabricators . | . . . . Repair Stations . | . . . . Recycling Units . | . . . . Scanalyzers . | . . . . Garrison Access . | . . . . Terminal Hacks . | . . . . Fabricator Hacks . | . . . . Repair Station Hacks . | . . . . Recycling Unit Hacks . | . . . . Scanalyzer . | . . . . Garrison Access Hacks . | . . . . Unauthorized Hacks . | . . . . Terminals . | . . . . Fabricators . | . . . . Repair Stations . | . . . . Recycling Units . | . . . . Scanalyzers . | . . . . Garrison Access . | . . . . Data Cores Recovered . | . . . . Used . | . . . . Hacking Detections . | . . . . Full Trace Events . | . . . . Feedback Events . | . . . . Feedback Blocked . | . . . . Robot Schematics Acquired . | . . . . Robots Built . | . . . . Authchips . | . . . . Time . | . . . . Total Robot Build Rating . | . . . . Part Schematics Acquired . | . . . . Parts Built . | . . . . Authchips . | . . . . Time . | . . . . Total Part Build Rating . | . . . . Parts Repaired . | . . . . Time . | . . . . Parts Recycled . | . . . . Recycled Matter . | . . . . Retrieved Matter . | . . . . Retrieved Components . | . . . . Parts Scanalyzed . | . . . . Part Schematics Acquired . | . . . . Parts Damaged . | . . . . Bothacking | -11 -10 -10 -10 ------------ Run | Yrd Mat Min Sub Used RIF Installer . | . . . . Robots Hacked . | . . . . Non-combat . | . . . . Combat . | . . . . Robot Hacks Applied . | . . . . Relay Couplers Released . | . . . . Fabnet Peak Effective % . | . . . . Robots Rewired . | . . . . Allies Hacked . | . . . . Hacks Repelled . | . . . . Allies | -11 -10 -10 -10 -------- Run | Yrd Mat Min Sub Total Allies . | . . . . Largest Group . | . . . . Highest-Rated Group . | . . . . Highest-Rated Ally . | . . . . Total Orders . | . . . . Ally Attacks . | . . . . Total Damage . | . . . . Kills . | . . . . Allies Corrupted . | . . . . Allies Melted . | . . . . Intel | -11 -10 -10 -10 ------- Run | Yrd Mat Min Sub Robot Analysis Total . | . . . . Derelict Logs Recovered 1 | . . 1 . Drone Launches . | . . . . Drone Recoveries . | . . . . Exploration | -11 -10 -10 -10 ------------- Run | Yrd Mat Min Sub Turns Passed 722 | 33 107 231 351 Spaces Moved 457 | 34 79 138 206 Core 12 | 12 . . . Treads . | . . . . Legs . | . . . . Wheels 445 | 22 79 138 206 Hover . | . . . . Flight . | . . . . Fastest Speed 50 | 50 80 80 80 Average Speed 81 | 69 80 80 85 Slowest Speed 110 | 80 80 80 110 Overloaded Moves . | . . . . Propulsion Burnouts . | . . . . Robots Hopped . | . . . . Cave-ins Triggered . | . . . . Exploration Rate (%) 15 | 3 18 30 10 Regions Visited 3 Branch Regions 2 Pre-discovered Areas 1 | . . 1 . Known Exits Taken . | . . . . Unknown Exits Taken 3 | 1 1 1 . Scrap Searched 12 | . . 1 11 Spaces Dug 13 | . . 13 . Terrain Destroyed 18 | . . 18 . Melee . | . . . . Projectile 18 | . . 18 . AOE . | . . . . Terrain Rammed . | . . . . Walls Destroyed . | . . . . Machines Disabled . | . . . . Actions | -11 -10 -10 -10 --------- Run | Yrd Mat Min Sub Total 619 | 43 104 168 304 Wait 46 | . 15 . 31 Move 454 | 33 78 137 206 Hop . | . . . . Pick Up 18 | 5 1 1 11 Fast Attach . | . . . . Attach 13 | 5 . . 8 Detach . | . . . . Swap 12 | . 1 . 11 Drop 2 | . . . 2 Fire 72 | . 9 30 33 Melee 2 | . . . 2 Ram . | . . . . Kick . | . . . . Crush . | . . . . Escape Stasis . | . . . . Rewire . | . . . . Trap . | . . . . Miscellaneous . | . . . . Route ------- -11/Scrapyard -10/Materials -10/Mines -10/Subcaves History --------- Turn | Location | Event 19 | -11/Scrapyard | Discovered new exit (range 15) 34 | -11/Scrapyard | Entered Materials 128 | -10/Materials | Discovered new exit (range 9) 141 | -10/Materials | Entered Mines 142 | -10/Mines | Assembled infested the area 311 | -10/Mines | Build established: Mutant 366 | -10/Mines | Discovered new exit (range 3) 372 | -10/Mines | Entered Subcaves 421 | -10/Subcaves | A swath of the cavern ceiling suddenly collapsed 580 | -10/Subcaves | Core integrity fell below 50% 635 | -10/Subcaves | Lost 5 parts (1p1n1u2w) 711 | -10/Subcaves | Ambushed by Subdweller buried in earth 711 | -10/Subcaves | Ambushed by Subdweller buried in earth 711 | -10/Subcaves | Ambushed by Subdweller buried in earth 715 | -10/Subcaves | Core integrity fell below 20% 723 | -10/Subcaves | Destroyed by JU-YTI(R) with Subdweller Machine Gun Last Messages --------------- 00663_ Dropped Heat Sink. 00667_ Acquired 15 matter. 00700_ Searching scrap... 00700_ Found Sub. Laser. 00700_ Found Riot Gun. 00700_ Found 24 Matter. 00701_ Acquired 24 matter. 00709_ Wheel destroyed. 00712_ JU-YTI(R): "ARGHSUB!" 00712_ SB-QCF(R): "FREEEEDUMB!" 00712_ EH-XRZ(R): "ARGHSUB!" 00713_ 90-2CS(R) destroyed. 00714_ 0Y-MNK(R): "HIDIE!" 00715_ Hvy. Battle Rifle destroyed. 00716_ Critical hit (Destroy). 00716_ Barrage Gun destroyed. 00719_ Splicing JU-YTI(R)... 00719_ JU-YTI(R) system unaffected. 00719_ Splicing SB-QCF(R)... 00719_ SB-QCF(R) system unaffected. Map ----- +----------------------------------------------------+ | ?????????" ??? # ?????????????????????????????? | | ????????? ??? ??????????????????????????????? | | ?????????" ?? ####???????????????????????????? | | ????????# #?# ???????????????????????????? | | ###????? ## ???????????????????????????? | | ###??## ????????????????????????????? | | ##?# ??????????????????????????????? | | #? ????????????????????????????????? | | #?# # #?????????????????????????????????? | | #?# ???????????????????????????????????? | | # ### ?????????????????????????????????????? | | # ## #??????????????????????????????????????? | | ## ##?????????????????????????????????????? | | ## ##????????????????????????????????????? | | &## ##?????????????"""???????????????????? | | ### #?####????????R"""??????????????????? | | &"## ###;;"????????"""#??????????????????? | | ## ;;; ;#???????"""##?????????????????? | | ## ;;??????#""""#?????????????????? | | [[;###### "#?????????????????? | | ## #;R%&R ; #?????????????????? | | ## ## ;;R #??????????????????? | | ### ##; ;; #??????????????????? | | #?## #??# R ##?????????????????? | | #??#### ??# R #?????????????????? | | #?????## ??# @ #?????????????????? | | #??????## ## ##?# #?????????????????? | | #???????###?##??# #?????????????????? | | #???????????????## ##?????????????????? | | ##???????????????### #### ###??????????????????? | | #?????????????????###??? #????????????????????? | | ##??????????????????????? ##????????????????????? | | #???????????????????????##?????????????????????? | | #??????????????????????????????????????????????? | | #??????????????????????????????????????????????? | | #??????????????????????????????????????????????? | | ##?????????????????????????????????????????????? | | ##????????????????????????????????????????????? | | #????????????????????????????????????????????? | | #????????????????????????????????????????????? | | #????????????????????????????????????????????? | | #????????????????????????????????????????????? | | ## [#????????????????????????????????????????????? | | ?# ##????????????????????????????????????????????? | | ## #?????????????????????????????????????????????? | | " #?????????????????????????????????????????????? | | " ###????????????????????????????????????????????? | | "# ##????????????????????????????????????????????? | | ## "#????????????????????????????????????????????? | | ##""#????????????????????????????????????????????? | +----------------------------------------------------+ Best States ------------- Heat Dissipation 35 Energy Generation 12 Energy Capacity 265 Matter Stores 300 Matter Capacity 300 Sight Range 21 Terrain Scan Density 10 Armor Coverage 150 Resistance: KI 10 Evasion (%) 50 Item Schematics ----------------- None Robot Schematics ------------------ None Fabricated ------------ Nothing Alien Tech Used ----------------- None Achievements -------------- None Challenges ------------ None Game ------ Seed GrapheneChargeConstruct Manual? 0 Play Time 00:10:45 Cumulative 27.0 hours Start 2024.04.07 @ 22:59:01 End 2024.04.07 @ 23:08:03 Sessions 1 Manual Loads 0 Difficulty Rogue Special Mode None Game No. 56 Rogue 56 Adventurer 0 Explorer 0 Win Type - Total 0 Types 0/0/0/0/0/0/0/0/0 Lore% 16 Gallery% 32 Achievement% 22 Wizard Run 0 Options --------- Layout 1 ASCII 0 Keyboard 0 Movement Mouse Keybinds 0 Fullscreen 1 Font 24/Smallcaps Map View 50x35 Zoom Use 0% Tactical HUD 1 Map Filters NONE Filters NONE Steam 1 RUN: 070c402b-c782-41d2-a481-d266ee993395